[Event "SUNWAY"]
[Date "2016.12.20"]
[Round "6.2"]
[White "Shyam, Sundar M."]
[Black "Sasikiran, Krishnan"]
[Result "1/2-1/2"]
[WhiteElo "2532"]
[BlackElo "2661"]
[ECO "C77"]
[WhiteFed "IND"]
[BlackFed "IND"]
[FCGameId "-106513690"]
[TimeControl "5400+30"]

1. e4 {[%clk 1:30:56]} e5 {[%clk 1:27:52]} 2. Nf3 {[%clk 1:31:12]} Nc6  {[%clk 1:28:11]} 3. Bb5 {[%clk 1:31:36]} a6 {[%clk 1:28:25]} 4. Ba4  {[%clk 1:31:59]} Nf6 {[%clk 1:28:46]} 5. Qe2 {[%clk 1:32:25]} b5  {[%clk 1:22:56]} 6. Bb3 {[%clk 1:32:39]} Bc5 {[%clk 1:23:12]} 7. a4  {[%clk 1:33:01]} Rb8 {[%clk 1:17:34]} 8. axb5 axb5 {[%clk 1:17:55]} 9. d3  {[%clk 1:33:44]} d6 {[%clk 1:15:23]} 10. Be3 {[%clk 1:34:07]} Bxe3  {[%clk 1:08:47]} 11. fxe3 {[%clk 1:34:30]} Ne7 {[%clk 1:08:02]} 12. O-O  {[%clk 1:26:43]} Ng6 {[%clk 1:05:18]} 13. Nc3 {[%clk 1:18:51]} Be6 14. Bxe6  {[%clk 0:57:57]} fxe6 {[%clk 0:53:57]} 15. b4 {[%clk 0:58:24]} O-O  {[%clk 0:49:36]} 16. Ra6 {[%clk 0:55:34]} Qc8 {[%clk 0:40:05]} 17. Rfa1  {[%clk 0:54:05]} c5 {[%clk 0:38:29]} 18. Rxd6 {[%clk 0:46:26]} cxb4  {[%clk 0:38:07]} 19. Nd1 {[%clk 0:46:50]} Qc5 {[%clk 0:36:34]} 20. Rda6  {[%clk 0:47:16]} Rbc8 {[%clk 0:30:28]} 21. R6a2 {[%clk 0:43:16]} Ne7  {[%clk 0:28:30]} 22. Nf2 {[%clk 0:39:39]} 1/2-1/2

[Event "SUNWAY"]
[Date "2016.12.20"]
[Round "6.3"]
[White "Narciso Dublan, Marc"]
[Black "Kamsky, Gata"]
[Result "1/2-1/2"]
[WhiteElo "2508"]
[BlackElo "2661"]
[ECO "D15"]
[WhiteFed "ESP"]
[BlackFed "USA"]
[FCGameId "-71670406"]
[TimeControl "5400+30"]

1. d4 d5 2. c4 c6 3. Nf3 Nf6 4. Nc3 Qb6 5. cxd5 cxd5 6. Ne5 e6 7. e3 Nbd7 8. f4  Ne4 9. Bd3 Nxe5 10. fxe5 f5 11. exf6 Nxf6 12. O-O Bd7 13. Bd2 Bd6 14. Be1 O-O  15. Qe2 Be8 1/2-1/2

[Event "SUNWAY"]
[Date "2016.12.20"]
[Round "6.4"]
[White "Ivanisevic, Ivan"]
[Black "Van Foreest, Jorden"]
[Result "1/2-1/2"]
[WhiteElo "2648"]
[BlackElo "2605"]
[ECO "B10"]
[WhiteFed "SRB"]
[BlackFed "NED"]
[FCGameId "1286315060"]
[TimeControl "5400+30"]

1. c4 {[%clk 1:30:36]} c6 {[%clk 1:28:49]} 2. e4 {[%clk 1:30:52]} d5  {[%clk 1:28:46]} 3. e5 {[%clk 1:31:16]} d4 {[%clk 1:25:53]} 4. f4  {[%clk 1:30:28]} Na6 {[%clk 1:17:31]} 5. Nf3 {[%clk 1:26:12]} d3  {[%clk 1:16:16]} 6. a3 {[%clk 1:09:08]} Be6 {[%clk 0:56:24]} 7. b3  {[%clk 1:06:47]} Nc5 {[%clk 0:55:00]} 8. Bb2 {[%clk 1:02:56]} Bg4  {[%clk 0:53:30]} 9. b4 {[%clk 1:01:31]} Ne6 {[%clk 0:52:12]} 10. h3  {[%clk 0:59:34]} Bxf3 {[%clk 0:43:22]} 11. Qxf3 {[%clk 0:59:57]} Nh6  {[%clk 0:41:53]} 12. g4 {[%clk 0:55:50]} Qd7 {[%clk 0:41:46]} 13. f5  {[%clk 0:45:43]} Nd4 {[%clk 0:41:53]} 14. Qxd3 {[%clk 0:46:05]} Rd8  {[%clk 0:42:19]} 15. Qxd4 {[%clk 0:40:23]} Qxd4 {[%clk 0:42:43]} 16. Bxd4  {[%clk 0:40:49]} Rxd4 {[%clk 0:43:08]} 17. Nc3 {[%clk 0:41:16]} g6  {[%clk 0:42:47]} 18. Ne2 {[%clk 0:40:21]} Rd3 {[%clk 0:39:55]} 19. Ng1  {[%clk 0:33:21]} Rd8 {[%clk 0:38:37]} 20. fxg6 {[%clk 0:33:34]} hxg6  {[%clk 0:38:40]} 21. Bg2 {[%clk 0:34:00]} Rd4 {[%clk 0:37:38]} 22. Ne2  {[%clk 0:31:34]} Rxc4 {[%clk 0:36:57]} 23. Ra2 {[%clk 0:31:44]} Nxg4  {[%clk 0:33:23]} 24. hxg4 Rxh1+ {[%clk 0:33:44]} 25. Bxh1 {[%clk 0:32:04]} Rxg4  {[%clk 0:34:08]} 26. Bf3 {[%clk 0:31:57]} Rh4 {[%clk 0:34:03]} 27. Kf2  {[%clk 0:32:13]} e6 {[%clk 0:27:31]} 28. Kg3 {[%clk 0:32:07]} Be7  {[%clk 0:27:54]} 29. Rc2 {[%clk 0:29:26]} a6 {[%clk 0:27:34]} 30. d3  {[%clk 0:27:48]} g5 {[%clk 0:21:32]} 31. Bg4 {[%clk 0:24:27]} Rh1  {[%clk 0:21:18]} 32. Rc1 {[%clk 0:24:30]} Rxc1 {[%clk 0:21:29]} 33. Nxc1  {[%clk 0:24:56]} c5 {[%clk 0:13:05]} 34. Na2 {[%clk 0:24:29]} cxb4  {[%clk 0:13:30]} 35. Nxb4 {[%clk 0:24:35]} a5 {[%clk 0:13:11]} 36. Nc2  {[%clk 0:24:58]} b5 {[%clk 0:13:34]} 37. Kf3 {[%clk 0:24:47]} b4  {[%clk 0:12:52]} 38. axb4 {[%clk 0:25:04]} axb4 {[%clk 0:12:23]} 39. Nd4  {[%clk 0:24:32]} Bc5 {[%clk 0:09:24]} 40. Ke4 {[%clk 0:53:04]} Ke7  {[%clk 0:39:48]} 41. Nc6+ {[%clk 0:50:46]} Kd7 {[%clk 0:39:03]} 42. Na5  {[%clk 0:50:49]} Bb6 {[%clk 0:37:45]} 43. Nc4 {[%clk 0:51:03]} Bc7  {[%clk 0:33:58]} 44. Bd1 {[%clk 0:50:37]} Ke7 {[%clk 0:34:19]} 45. Ne3  {[%clk 0:50:53]} f5+ {[%clk 0:34:03]} 46. exf6+ {[%clk 0:51:16]} Kxf6  {[%clk 0:34:30]} 47. Ng4+ {[%clk 0:51:15]} Ke7 {[%clk 0:34:52]} 48. Bb3  {[%clk 0:50:53]} Bb6 {[%clk 0:33:24]} 49. Ne5 {[%clk 0:50:57]} Bc5  {[%clk 0:33:21]} 50. Nc6+ {[%clk 0:48:54]} Kd7 {[%clk 0:33:31]} 51. Ne5+  {[%clk 0:46:21]} Ke7 {[%clk 0:33:47]} 52. Kf3 {[%clk 0:46:37]} Bd6  {[%clk 0:33:14]} 53. Nc6+ {[%clk 0:47:00]} Kf6 {[%clk 0:32:47]} 54. Kg4  {[%clk 0:46:27]} Bc5 {[%clk 0:26:54]} 55. Nd8 {[%clk 0:46:18]} e5  {[%clk 0:27:14]} 56. Nf7 {[%clk 0:46:00]} Be3 {[%clk 0:26:31]} 57. Kf3  {[%clk 0:41:50]} Bf4 {[%clk 0:24:35]} 58. Nh6 {[%clk 0:42:07]} Kg6  {[%clk 0:25:01]} 59. Ng4 {[%clk 0:42:28]} Kf5 {[%clk 0:25:27]} 60. Ba4  {[%clk 0:42:07]} Kg6 {[%clk 0:25:00]} 61. Bb3 {[%clk 0:39:16]} Kh5  {[%clk 0:21:54]} 62. Be6 {[%clk 0:39:37]} Kh4 {[%clk 0:22:18]} 63. Nh6  {[%clk 0:38:31]} Kh5 {[%clk 0:22:04]} 64. Ng8 {[%clk 0:38:24]} Kg6  {[%clk 0:15:38]} 65. Kg4 {[%clk 0:38:30]} Be3 {[%clk 0:15:34]} 66. Bc4  {[%clk 0:38:15]} Bc5 {[%clk 0:15:53]} 67. Bd5 {[%clk 0:34:56]} Bf8  {[%clk 0:15:43]} 68. Bb3 {[%clk 0:34:02]} Bc5 {[%clk 0:15:55]} 69. Kf3  {[%clk 0:34:15]} Bd6 {[%clk 0:16:03]} 70. Be6 {[%clk 0:34:07]} Kg7  {[%clk 0:16:22]} 71. Bd5 {[%clk 0:32:51]} Kg6 {[%clk 0:16:39]} 72. Bc4  {[%clk 0:27:20]} Bf8 {[%clk 0:16:48]} 73. Be6 {[%clk 0:26:23]} Kg7  {[%clk 0:16:41]} 74. Bd5 {[%clk 0:25:15]} Kg6 {[%clk 0:14:58]} 75. Ke4  {[%clk 0:24:00]} g4 {[%clk 0:14:56]} 76. Be6 {[%clk 0:12:17]} g3  {[%clk 0:14:53]} 77. Kf3 {[%clk 0:12:28]} Bd6 {[%clk 0:15:18]} 78. Bd5  {[%clk 0:12:15]} Kg7 {[%clk 0:15:16]} 79. Kg2 {[%clk 0:12:41]} Kg6  {[%clk 0:15:37]} 80. Kh3 {[%clk 0:11:40]} Kg7 {[%clk 0:15:49]} 81. Ba2  {[%clk 0:11:36]} Kg6 {[%clk 0:15:58]} 82. Bb3 {[%clk 0:11:51]} Kg7  {[%clk 0:16:19]} 83. Bd5 {[%clk 0:12:16]} Kg6 {[%clk 0:16:39]} 84. Bb3  {[%clk 0:09:41]} 1/2-1/2

[Event "SUNWAY"]
[Date "2016.12.20"]
[Round "6.5"]
[White "Edouard, Romain"]
[Black "Peralta, Fernando"]
[Result "1/2-1/2"]
[WhiteElo "2611"]
[BlackElo "2574"]
[ECO "E21"]
[WhiteFed "FRA"]
[BlackFed "ARG"]
[FCGameId "-1172488379"]
[TimeControl "5400+30"]

1. d4 {[%clk 1:25:37]} Nf6 {[%clk 1:30:42]} 2. c4 {[%clk 1:26:02]} e6  {[%clk 1:31:06]} 3. Nc3 {[%clk 1:26:28]} Bb4 {[%clk 1:31:25]} 4. Nf3  {[%clk 1:26:52]} d5 {[%clk 1:31:36]} 5. cxd5 {[%clk 1:27:08]} exd5  {[%clk 1:31:59]} 6. Bg5 {[%clk 1:27:34]} h6 {[%clk 1:31:51]} 7. Bh4  {[%clk 1:27:58]} O-O {[%clk 1:31:50]} 8. Qc2 {[%clk 1:21:48]} c5  {[%clk 1:31:32]} 9. e3 {[%clk 1:14:03]} cxd4 {[%clk 1:31:04]} 10. Nxd4  {[%clk 1:13:56]} Nc6 {[%clk 1:31:25]} 11. Be2 {[%clk 0:56:45]} Nxd4  {[%clk 1:30:04]} 12. exd4 {[%clk 0:57:03]} g5 {[%clk 1:28:58]} 13. Bg3  {[%clk 0:57:15]} Ne4 {[%clk 1:28:54]} 14. O-O {[%clk 0:55:42]} Bxc3  {[%clk 1:26:42]} 15. bxc3 {[%clk 0:56:09]} Bf5 {[%clk 1:26:56]} 16. Qb2  {[%clk 0:48:17]} Qb6 {[%clk 1:05:57]} 17. Qxb6 {[%clk 0:46:09]} axb6  {[%clk 1:06:20]} 18. Rfc1 {[%clk 0:46:36]} Rfc8 {[%clk 0:55:11]} 19. c4  {[%clk 0:46:58]} dxc4 {[%clk 0:54:27]} 20. Rxc4 {[%clk 0:40:55]} Rxc4  {[%clk 0:51:52]} 21. Bxc4 {[%clk 0:41:23]} Nxg3 {[%clk 0:52:16]} 22. hxg3  {[%clk 0:40:51]} Ra4 {[%clk 0:52:35]} 23. Rc1 {[%clk 0:40:32]} b5  {[%clk 0:52:27]} 24. Bxb5 {[%clk 0:39:51]} Rxd4 {[%clk 0:45:39]} 25. Rc7  {[%clk 0:39:10]} Be6 {[%clk 0:39:19]} 1/2-1/2

[Event "SUNWAY"]
[Date "2016.12.20"]
[Round "6.6"]
[White "Aroshidze, Levan"]
[Black "Vocaturo, Daniele"]
[Result "0-1"]
[WhiteElo "2517"]
[BlackElo "2606"]
[ECO "C19"]
[WhiteFed "ESP"]
[BlackFed "ITA"]
[FCGameId "-1907195764"]
[TimeControl "5400+30"]

1. e4 {[%clk 1:27:18]} e6 {[%clk 1:30:26]} 2. d4 {[%clk 1:27:42]} d5  {[%clk 1:30:44]} 3. Nc3 {[%clk 1:28:05]} Bb4 {[%clk 1:30:28]} 4. e5  {[%clk 1:28:27]} c5 {[%clk 1:30:17]} 5. a3 {[%clk 1:28:09]} Bxc3+  {[%clk 1:30:26]} 6. bxc3 {[%clk 1:28:30]} Ne7 {[%clk 1:30:13]} 7. Nf3  {[%clk 1:27:15]} h6 {[%clk 1:29:20]} 8. a4 {[%clk 1:23:13]} O-O {[%clk 1:27:37]}  9. Bd3 {[%clk 1:20:40]} b6 {[%clk 1:25:47]} 10. Ba3 {[%clk 1:07:34]} Qc7  {[%clk 1:21:49]} 11. O-O {[%clk 1:07:52]} Ba6 {[%clk 1:19:10]} 12. Bxa6  {[%clk 0:58:05]} Nxa6 {[%clk 1:18:25]} 13. Qe2 {[%clk 0:58:22]} Nb8  {[%clk 1:17:24]} 14. c4 {[%clk 0:58:27]} dxc4 {[%clk 1:12:47]} 15. dxc5  {[%clk 0:55:55]} bxc5 {[%clk 1:12:36]} 16. Qxc4 {[%clk 0:49:45]} Nd7  {[%clk 1:12:30]} 17. Rfe1 {[%clk 0:50:05]} Rac8 {[%clk 1:05:18]} 18. Rab1  {[%clk 0:40:55]} Rfd8 {[%clk 1:02:04]} 19. Rb3 {[%clk 0:32:23]} Ng6  {[%clk 0:59:12]} 20. Rbe3 {[%clk 0:30:03]} Nb6 {[%clk 0:55:09]} 21. Qg4  {[%clk 0:29:20]} Nd5 {[%clk 0:44:29]} 22. Re4 {[%clk 0:29:33]} Qa5  {[%clk 0:41:46]} 23. h4 {[%clk 0:27:43]} Nge7 {[%clk 0:39:36]} 24. Bc1  {[%clk 0:22:48]} Nf5 {[%clk 0:39:46]} 25. h5 Nb4 {[%clk 0:36:18]} 26. Rc4  {[%clk 0:16:25]} Nc6 {[%clk 0:34:15]} 27. c3 {[%clk 0:14:38]} Rd3  {[%clk 0:32:25]} 28. Bd2 {[%clk 0:11:39]} Qd8 {[%clk 0:31:58]} 29. Re2  {[%clk 0:08:27]} Na5 {[%clk 0:28:10]} 30. Rce4 {[%clk 0:08:35]} Nb3  {[%clk 0:27:58]} 31. Be1 {[%clk 0:08:35]} Rd1 {[%clk 0:25:42]} 32. Qf4  {[%clk 0:07:19]} Qd3 {[%clk 0:19:14]} 33. g4 {[%clk 0:06:09]} Ne7  {[%clk 0:17:54]} 34. R4e3 {[%clk 0:04:22]} Qb1 {[%clk 0:16:36]} 35. Qc4  {[%clk 0:03:45]} Nd5 {[%clk 0:16:08]} 36. Re4 {[%clk 0:04:04]} Nc1  {[%clk 0:15:35]} 37. Rd2 {[%clk 0:03:42]} Nb6 {[%clk 0:15:48]} 38. Qa6  {[%clk 0:01:27]} Qxe4 {[%clk 0:15:40]} 39. Rxd1 {[%clk 0:01:51]} Qxg4+  {[%clk 0:15:10]} 40. Kf1 {[%clk 0:31:37]} Qxf3 {[%clk 0:45:20]} 41. Rxc1  {[%clk 0:31:49]} Qh1+ {[%clk 0:45:45]} 42. Ke2 {[%clk 0:32:15]} Qxh5+  {[%clk 0:46:06]} 43. Kf1 {[%clk 0:32:15]} Qh1+ {[%clk 0:41:18]} 44. Ke2  {[%clk 0:32:43]} Qe4+ {[%clk 0:41:15]} 45. Kf1 {[%clk 0:33:07]} Rd8  {[%clk 0:40:59]} 0-1

[Event "SUNWAY"]
[Date "2016.12.20"]
[Round "6.7"]
[White "Zubov, Alexander"]
[Black "Gu, Xiaobing"]
[Result "1-0"]
[WhiteElo "2606"]
[BlackElo "2324"]
[ECO "A45"]
[WhiteFed "UKR"]
[BlackFed "CHN"]
[FCGameId "2039775958"]
[TimeControl "5400+30"]

1. d4 Nf6 2. g3 g6 3. Bg2 Bg7 4. e4 d6 5. Ne2 c6 6. a4 Nbd7 7. a5 O-O 8. O-O e5  9. Nbc3 Re8 10. h3 exd4 11. Nxd4 Qc7 12. Re1 Nc5 13. Bf4 Nh5 14. Ndb5 Qd7 15.  Bxd6 Ne6 16. Na3 Bd4 17. Nc4 Rd8 18. Qd3 f6 19. Red1 Qf7 20. Ne2 Bc5 21. Qc3  Bxd6 22. Rxd6 Re8 23. Rd2 Qe7 24. Nd6 Rd8 25. Rad1 Nhg7 26. f4 Ne8 27. e5 fxe5  28. fxe5 N8c7 29. Kh2 Rf8 30. Qb3 Qg5 31. a6 b6 32. Nxc8 Raxc8 33. Nd4 Rce8 34.  h4 Qxe5 35. Re2 Qf6 36. Nxe6 Kh8 37. Rde1 Nxe6 38. Rxe6 Rxe6 39. Rxe6 1-0

[Event "SUNWAY"]
[Date "2016.12.20"]
[Round "6.8"]
[White "Vorobiov, Evgeny E."]
[Black "Esplugas Esteve, Vicenc"]
[Result "1-0"]
[WhiteElo "2583"]
[BlackElo "2280"]
[ECO "E63"]
[WhiteFed "RUS"]
[BlackFed "ESP"]
[FCGameId "-750228768"]
[TimeControl "5400+30"]

1. d4 {[%clk 1:30:43]} Nf6 {[%clk 1:30:55]} 2. c4 {[%clk 1:31:07]} g6  {[%clk 1:31:20]} 3. Nc3 {[%clk 1:31:10]} Bg7 {[%clk 1:31:46]} 4. Nf3  {[%clk 1:30:39]} O-O {[%clk 1:32:09]} 5. g3 {[%clk 1:31:01]} d6 {[%clk 1:32:28]}  6. Bg2 {[%clk 1:31:26]} Nc6 {[%clk 1:32:41]} 7. O-O {[%clk 1:31:45]} a6  {[%clk 1:33:07]} 8. Bf4 {[%clk 1:31:46]} Rb8 {[%clk 1:33:30]} 9. Rc1  {[%clk 1:31:53]} h6 {[%clk 1:33:54]} 10. h3 {[%clk 1:18:33]} g5 {[%clk 1:34:18]}  11. Bd2 {[%clk 1:13:06]} g4 {[%clk 1:16:27]} 12. hxg4 Nxg4 {[%clk 1:15:12]} 13.  Nd5 {[%clk 1:01:07]} e5 {[%clk 1:08:16]} 14. dxe5 {[%clk 0:59:42]} dxe5  {[%clk 1:06:35]} 15. Bc3 {[%clk 0:55:57]} f5 {[%clk 1:04:14]} 16. Rc2  {[%clk 0:51:46]} h5 {[%clk 0:53:27]} 17. Rd2 {[%clk 0:48:25]} Bh6  {[%clk 0:52:55]} 18. e3 {[%clk 0:46:41]} e4 {[%clk 0:47:08]} 19. Nh2  {[%clk 0:31:50]} Qg5 {[%clk 0:42:30]} 20. Nxg4 {[%clk 0:30:35]} hxg4  {[%clk 0:41:55]} 21. b4 {[%clk 0:25:11]} Bg7 {[%clk 0:33:44]} 22. Qa1  {[%clk 0:24:36]} Be6 {[%clk 0:33:03]} 23. b5 {[%clk 0:20:27]} Nd8  {[%clk 0:28:44]} 24. Rfd1 {[%clk 0:17:45]} c6 {[%clk 0:25:13]} 25. Nf4  {[%clk 0:14:56]} Bxc4 {[%clk 0:22:56]} 26. bxa6 {[%clk 0:15:12]} bxa6  {[%clk 0:22:38]} 27. Bf1 {[%clk 0:15:02]} Bf7 {[%clk 0:14:22]} 28. Rd7  {[%clk 0:13:26]} Rb7 {[%clk 0:10:32]} 29. R7d6 {[%clk 0:08:54]} Rc7  {[%clk 0:07:26]} 30. Bxg7 {[%clk 0:08:20]} 1-0

[Event "SUNWAY"]
[Date "2016.12.20"]
[Round "6.9"]
[White "Beerdsen, Thomas"]
[Black "Postny, Evgeny"]
[Result "1/2-1/2"]
[WhiteElo "2407"]
[BlackElo "2620"]
[ECO "B11"]
[WhiteFed "NED"]
[BlackFed "ISR"]
[FCGameId "982716582"]
[TimeControl "5400+30"]

1. e4 c6 2. Nf3 d5 3. Nc3 Bg4 4. d4 e6 5. Bd3 Nf6 6. e5 Nfd7 7. h3 Bxf3 8. Qxf3  c5 9. dxc5 Nc6 10. Qg3 Ncxe5 11. O-O g6 12. Re1 Nxd3 13. cxd3 Bxc5 14. Bg5 Be7  15. Bxe7 Kxe7 16. Nxd5+ Kf8 17. Nf4 Qb6 18. d4 Re8 19. Rac1 Kg8 20. Qc3 Rd8 21.  Qc4 Kg7 22. Rxe6 fxe6 23. Nxe6+ Kf6 24. d5 g5 25. Qg4 Qxb2 26. Qxg5+ Kf7 27. Rc4  Rdg8 28. Qf4+ Qf6 29. Qc7 Qe7 30. Qf4+ Qf6 31. Qc7 Qe7 32. Qf4+ 1/2-1/2

[Event "SUNWAY"]
[Date "2016.12.20"]
[Round "6.10"]
[White "Collas, Didier"]
[Black "Lopez Martinez, Josep Manuel"]
[Result "0-1"]
[WhiteElo "2399"]
[BlackElo "2552"]
[ECO "B46"]
[WhiteFed "FRA"]
[BlackFed "ESP"]
[FCGameId "-789894553"]
[TimeControl "5400+30"]

1. e4 c5 {[%clk 1:27:50]} 2. Nf3 {[%clk 1:31:21]} e6 {[%clk 1:27:59]} 3. d4 cxd4  {[%clk 1:28:21]} 4. Nxd4 {[%clk 1:32:11]} Nc6 {[%clk 1:28:18]} 5. Nc3  {[%clk 1:32:34]} a6 {[%clk 1:28:13]} 6. Nxc6 {[%clk 1:32:34]} bxc6  {[%clk 1:28:30]} 7. Bd3 {[%clk 1:33:00]} d5 {[%clk 1:28:49]} 8. O-O  {[%clk 1:33:25]} Nf6 {[%clk 1:29:08]} 9. Re1 {[%clk 1:33:51]} Be7  {[%clk 1:29:29]} 10. e5 {[%clk 1:32:06]} Nd7 {[%clk 1:29:50]} 11. Qg4  {[%clk 1:32:31]} Kf8 {[%clk 1:29:50]} 12. Bd2 {[%clk 1:11:15]} h5  {[%clk 1:20:59]} 13. Qg3 {[%clk 1:08:24]} Nc5 {[%clk 1:16:09]} 14. Bf1  {[%clk 1:08:26]} a5 {[%clk 1:15:07]} 15. Be3 {[%clk 1:02:59]} Rb8  {[%clk 1:14:13]} 16. b3 {[%clk 1:01:01]} Rb4 {[%clk 1:13:06]} 17. a3 Rg4  {[%clk 0:50:42]} 18. Qf3 {[%clk 0:55:04]} Nd7 {[%clk 0:48:44]} 19. Bc1  {[%clk 0:54:49]} Bc5 {[%clk 0:42:49]} 20. Na4 {[%clk 0:42:39]} Bd4  {[%clk 0:41:41]} 21. Bb2 {[%clk 0:43:05]} Ba7 {[%clk 0:41:33]} 22. Bc1  {[%clk 0:30:37]} Qc7 {[%clk 0:29:17]} 23. Bb2 {[%clk 0:24:10]} Rg5  {[%clk 0:29:00]} 24. Bd3 {[%clk 0:24:06]} h4 {[%clk 0:25:59]} 25. Re2  {[%clk 0:22:17]} Nxe5 {[%clk 0:16:59]} 26. Qf4 {[%clk 0:22:24]} f6  {[%clk 0:16:06]} 27. Qxg5 {[%clk 0:13:42]} fxg5 {[%clk 0:16:10]} 28. Bxe5  {[%clk 0:13:34]} Qe7 {[%clk 0:15:43]} 29. h3 {[%clk 0:10:00]} g4  {[%clk 0:12:58]} 30. hxg4 {[%clk 0:10:26]} Qg5 {[%clk 0:11:44]} 31. Kh2  {[%clk 0:08:11]} Qxg4 {[%clk 0:12:00]} 32. f3 {[%clk 0:08:33]} Qg5  {[%clk 0:12:07]} 33. Rae1 {[%clk 0:05:53]} Rh5 {[%clk 0:11:51]} 34. b4  {[%clk 0:06:14]} axb4 {[%clk 0:11:50]} 35. axb4 {[%clk 0:06:43]} Qe7  {[%clk 0:11:45]} 36. Nc5 {[%clk 0:06:36]} Rxe5 {[%clk 0:11:28]} 37. Rxe5  {[%clk 0:07:05]} Bb8 {[%clk 0:11:57]} 38. f4 {[%clk 0:07:11]} Bxe5  {[%clk 0:10:00]} 39. Rxe5 {[%clk 0:07:10]} Qf6 {[%clk 0:09:19]} 40. g3  {[%clk 0:37:39]} Qh6 {[%clk 0:37:55]} 41. Kh3 Kf7 {[%clk 0:33:31]} 42. Be2  {[%clk 0:08:01]} hxg3+ {[%clk 0:33:28]} 43. Kxg3 Qg6+ 44. Bg4 {[%clk 0:08:50]}  Qxc2 {[%clk 0:33:17]} 45. Nxe6 {[%clk 0:09:18]} Qc3+ {[%clk 0:30:45]} 46. Kh4  {[%clk 0:08:55]} Bxe6 {[%clk 0:28:09]} 47. Rxe6 {[%clk 0:09:15]} Qxb4  {[%clk 0:26:33]} 48. f5 {[%clk 0:09:41]} c5 {[%clk 0:25:46]} 49. Kg3  {[%clk 0:09:28]} Qc3+ {[%clk 0:25:39]} 50. Kh4 {[%clk 0:09:55]} Qd4  {[%clk 0:25:46]} 51. Kh3 Qd3+ {[%clk 0:24:22]} 52. Kh4 {[%clk 0:09:55]} Qc4  {[%clk 0:24:29]} 53. Kg3 {[%clk 0:10:13]} Qb3+ {[%clk 0:24:36]} 54. Kh4  {[%clk 0:10:31]} Qa4 {[%clk 0:24:32]} 55. Kg5 {[%clk 0:10:38]} c4  {[%clk 0:23:43]} 56. Bf3 {[%clk 0:05:48]} Qd7 {[%clk 0:20:05]} 57. Bh5+  {[%clk 0:02:21]} Kf8 {[%clk 0:20:13]} 58. Kf4 {[%clk 0:00:53]} c3  {[%clk 0:18:08]} 59. Ke3 {[%clk 0:00:37]} Qc8 {[%clk 0:17:33]} 0-1

[Event "SUNWAY"]
[Date "2016.12.20"]
[Round "6.11"]
[White "Sunilduth Lyna, Narayanan"]
[Black "Roeder, Matthias"]
[Result "1-0"]
[WhiteElo "2541"]
[BlackElo "2386"]
[ECO "A56"]
[WhiteFed "IND"]
[BlackFed "GER"]
[FCGameId "1964125141"]
[TimeControl "5400+30"]

1. d4 {[%clk 1:30:55]} Nf6 {[%clk 1:30:45]} 2. c4 {[%clk 1:31:17]} c5  {[%clk 1:30:50]} 3. d5 {[%clk 1:31:20]} e5 {[%clk 1:31:11]} 4. Nc3  {[%clk 1:31:09]} d6 5. e4 {[%clk 1:31:10]} Be7 {[%clk 1:31:53]} 6. g3  {[%clk 1:29:13]} O-O {[%clk 1:31:44]} 7. Bg2 {[%clk 1:29:40]} Na6  {[%clk 1:32:00]} 8. Nge2 {[%clk 1:29:38]} Nc7 {[%clk 1:32:23]} 9. a4  {[%clk 1:27:54]} b6 {[%clk 1:32:46]} 10. O-O {[%clk 1:28:16]} a6  {[%clk 1:33:09]} 11. Qd3 {[%clk 1:14:00]} Rb8 {[%clk 1:29:47]} 12. f4  {[%clk 1:06:54]} Nfe8 13. Be3 {[%clk 1:06:02]} Bd7 {[%clk 1:25:00]} 14. b3  {[%clk 1:04:05]} Rb7 {[%clk 1:18:15]} 15. Kh1 {[%clk 0:57:00]} b5 16. fxe5  {[%clk 0:49:25]} dxe5 {[%clk 1:06:46]} 17. a5 {[%clk 0:49:42]} Bd6  {[%clk 1:03:09]} 18. Nc1 {[%clk 0:45:54]} Qe7 {[%clk 1:02:29]} 19. Qc2 b4  {[%clk 0:58:50]} 20. Na4 {[%clk 0:45:28]} Bxa4 {[%clk 0:58:54]} 21. Rxa4  {[%clk 0:45:32]} Nf6 {[%clk 0:56:44]} 22. Nd3 {[%clk 0:43:37]} Rfb8  {[%clk 0:50:57]} 23. Qd1 {[%clk 0:39:22]} Nd7 {[%clk 0:49:19]} 24. Ra2  {[%clk 0:39:18]} Ne8 {[%clk 0:48:49]} 25. Bh3 {[%clk 0:39:22]} Nf8  {[%clk 0:49:10]} 26. Bg4 {[%clk 0:34:14]} f6 {[%clk 0:46:27]} 27. h4  {[%clk 0:34:31]} Kh8 {[%clk 0:43:11]} 28. Qf3 {[%clk 0:32:39]} Rc7  {[%clk 0:42:16]} 29. h5 {[%clk 0:26:20]} Rbb7 {[%clk 0:39:23]} 30. Raf2  {[%clk 0:24:40]} Kg8 {[%clk 0:38:18]} 31. h6 {[%clk 0:20:25]} g6  {[%clk 0:38:36]} 32. Bg5 {[%clk 0:16:12]} fxg5 {[%clk 0:33:17]} 33. Nxe5  {[%clk 0:16:36]} Qxe5 {[%clk 0:30:05]} 34. Qxf8+ {[%clk 0:16:59]} 1-0

[Event "SUNWAY"]
[Date "2016.12.20"]
[Round "6.12"]
[White "Gual Pascual, Antonio"]
[Black "Burmakin, Vladimir"]
[Result "0-1"]
[WhiteElo "2388"]
[BlackElo "2535"]
[ECO "A06"]
[WhiteFed "ESP"]
[BlackFed "RUS"]
[FCGameId "459757340"]
[TimeControl "5400+30"]

1. Nf3 {[%clk 1:30:54]} d5 {[%clk 1:30:49]} 2. g3 {[%clk 1:31:06]} c6  {[%clk 1:30:49]} 3. c4 {[%clk 1:30:33]} Nf6 {[%clk 1:31:05]} 4. Bg2  {[%clk 1:30:44]} Bf5 {[%clk 1:31:30]} 5. O-O {[%clk 1:29:33]} e6  {[%clk 1:31:52]} 6. Qb3 {[%clk 1:25:29]} Qb6 {[%clk 1:32:07]} 7. d3  {[%clk 1:25:21]} Nbd7 {[%clk 1:32:15]} 8. Be3 {[%clk 1:17:47]} Bc5  {[%clk 1:30:08]} 9. Bxc5 {[%clk 1:17:15]} Nxc5 {[%clk 1:30:29]} 10. Qc2  {[%clk 1:16:29]} O-O {[%clk 1:27:09]} 11. Nbd2 {[%clk 1:10:45]} h6  {[%clk 1:21:31]} 12. Rab1 {[%clk 1:02:54]} a5 {[%clk 1:21:21]} 13. h3  {[%clk 0:56:13]} Bh7 {[%clk 1:12:54]} 14. a3 {[%clk 0:52:32]} Na6  {[%clk 1:12:42]} 15. Qc3 {[%clk 0:46:03]} c5 {[%clk 1:09:05]} 16. cxd5  {[%clk 0:42:43]} exd5 {[%clk 1:09:31]} 17. Rbc1 {[%clk 0:42:30]} Rfe8  {[%clk 0:53:06]} 18. e3 {[%clk 0:37:43]} Qd8 19. d4 c4 {[%clk 0:42:58]} 20. Ne5  {[%clk 0:29:13]} b5 {[%clk 0:43:20]} 21. Nc6 {[%clk 0:29:16]} Qb6  {[%clk 0:43:30]} 22. Nxa5 {[%clk 0:29:36]} Ne4 {[%clk 0:42:52]} 23. Nxe4  {[%clk 0:29:52]} Bxe4 {[%clk 0:43:04]} 24. f3 {[%clk 0:22:19]} Bd3  {[%clk 0:40:58]} 25. Rfe1 {[%clk 0:21:52]} b4 {[%clk 0:41:10]} 0-1